bitfinex/quotes_BTCUSD_20250526
["timestamp","ask_amount","ask_price","bid_price","bid_amount"]
[1748231966469,0.02295529,109450.0,109440.0,0.43513853]
[1748231971604,0.01695529,109450.0,109440.0,0.43513853]
[1748231974697,0.03265529,109450.0,109440.0,0.43513853]
[1748231979488,0.02665529,109450.0,109440.0,0.43513853]
[1748231981813,0.0238,109450.0,109440.0,0.43513853]
[1748231986454,0.0178,109450.0,109440.0,0.43513853]
[1748231991325,0.02065528,109450.0,109440.0,0.43513853]
[1748231993671,0.01465528,109450.0,109440.0,0.43513853]
[1748231995424,0.0118,109450.0,109440.0,0.43513853]
[1748231995677,0.69596209,109480.0,109440.0,0.52210966]
[1748231995879,0.55289703,109470.0,109440.0,0.52210966]
[1748231996124,0.55004209,109470.0,109440.0,0.52210966]
[1748231996554,0.55004209,109470.0,109440.0,0.52110966]
[1748231996769,0.0159,109460.0,109440.0,0.52210966]
[1748231997076,0.0159,109460.0,109440.0,0.52110966]
[1748231997282,0.01875494,109460.0,109440.0,0.52110966]
[1748231997540,0.0159,109460.0,109440.0,0.53750966]
[1748231997924,0.0159,109460.0,109440.0,0.53850966]
[1748231998628,0.03405494,109470.0,109440.0,0.53850966]
[1748231999058,0.03405494,109470.0,109440.0,0.71339443]
[1748231999272,0.0312,109470.0,109440.0,0.71239443]
[1748231999878,0.0312,109470.0,109440.0,0.71339443]
[1748232000234,0.0312,109470.0,109440.0,0.71239443]
[1748232000673,0.0312,109470.0,109450.0,0.0154]
[1748232001158,0.0312,109470.0,109440.0,0.71259443]
[1748232001928,9.084e-05,109470.0,109450.0,0.0308]
[1748232002133,0.01569084,109470.0,109450.0,0.0308]
[1748232002341,0.01769084,109470.0,109450.0,0.0308]
[1748232002601,0.03609084,109470.0,109450.0,0.0163]
[1748232003012,0.01969084,109470.0,109460.0,0.34]
[1748232003400,0.02254553,109470.0,109460.0,0.34]
[1748232004018,0.00209084,109470.0,109460.0,0.25046556]
[1748232004222,0.00209084,109470.0,109460.0,0.26626556]
[1748232004424,0.00209084,109470.0,109460.0,0.29080641]
[1748232004632,0.00209084,109470.0,109460.0,0.13488641]
[1748232004801,0.00509084,109470.0,109460.0,0.77444641]
[1748232005002,0.00309084,109470.0,109460.0,0.80341118]
[1748232005414,0.00609084,109470.0,109460.0,0.80341118]
[1748232005848,0.55004209,109500.0,109460.0,0.80341118]
[1748232006054,0.0321,109490.0,109480.0,0.34]
[1748232007588,0.0351,109490.0,109480.0,0.48692]
[1748232008073,0.0361,109490.0,109480.0,0.48692]
[1748232009221,0.0197,109490.0,109480.0,0.48692]
[1748232009637,0.004,109490.0,109480.0,0.48692]
[1748232010444,0.004,109490.0,109480.0,0.59216556]
[1748232011108,0.004,109490.0,109480.0,0.60796556]
[1748232012777,0.01489728,109500.0,109480.0,0.60796556]
[1748232012923,0.01489728,109500.0,109490.0,0.1526]
[1748232014188,0.01689728,109500.0,109490.0,0.1526]
[1748232014920,0.002,109500.0,109490.0,0.1526]
[1748232015258,0.004,109500.0,109490.0,0.1526]
[1748232015900,0.002,109500.0,109490.0,0.1526]
[1748232016147,0.031,109510.0,109500.0,0.34]
[1748232016496,0.0310497,109510.0,109500.0,0.34]
[1748232017440,0.0320497,109510.0,109500.0,0.34]
[1748232018517,0.0340497,109510.0,109500.0,0.34]
[1748232019404,0.0180497,109510.0,109500.0,0.34]
[1748232020121,0.0336497,109510.0,109500.0,0.34]
[1748232022614,0.03650344,109510.0,109500.0,0.34]
[1748232027661,0.03650344,109510.0,109500.0,0.49256]
[1748232029080,0.0336497,109510.0,109500.0,0.49256]
[1748232029438,0.03650344,109510.0,109500.0,0.49256]
[1748232029850,0.0030497,109510.0,109500.0,0.1769234]
[1748232030044,0.0341497,109510.0,109500.0,0.0243634]
[1748232030282,0.0341497,109510.0,109500.0,0.3228034]
[1748232030874,0.0321497,109510.0,109500.0,0.3228034]
[1748232031993,0.0168497,109510.0,109500.0,0.3228034]
[1748232032269,0.0010497,109510.0,109500.0,0.3228034]
[1748232032482,4.97e-05,109510.0,109500.0,0.3228034]
[1748232033411,0.0154497,109510.0,109500.0,0.3228034]
[1748232033604,0.0312497,109510.0,109500.0,0.3228034]
[1748232034522,0.0154497,109510.0,109500.0,0.3228034]
[1748232034737,4.97e-05,109510.0,109500.0,0.3228034]
[1748232035143,0.0166497,109510.0,109500.0,0.3226834]
[1748232035404,0.0318497,109510.0,109500.0,0.3226834]
[1748232035825,0.0318497,109510.0,109500.0,0.0243634]
[1748232035826,0.60985606,109510.0,109500.0,0.0243634]
[1748232036046,0.0318,109490.0,109480.0,0.15248]
[1748232036260,0.0166,109480.0,109470.0,0.19916817]
[1748232036475,0.0318,109480.0,109470.0,0.05332817]
[1748232036682,0.0318,109480.0,109470.0,0.35164817]
[1748232037312,0.0318,109480.0,109470.0,0.3226834]
[1748232037523,0.0298,109480.0,109470.0,0.3226834]
[1748232037734,0.0298,109480.0,109470.0,0.3256834]
[1748232038133,0.0298,109480.0,109470.0,0.0273634]
[1748232038346,0.0298,109480.0,109470.0,0.1798434]
[1748232038932,0.0298,109480.0,109470.0,0.1828434]
[1748232039776,0.015,109490.0,109470.0,0.1828434]
[1748232040158,0.011,109490.0,109470.0,0.1828434]
[1748232040561,0.026,109490.0,109470.0,0.1798434]
[1748232040777,0.026,109490.0,109470.0,0.3257234]
[1748232041005,0.026,109490.0,109470.0,0.3287234]
[1748232041646,0.026,109490.0,109470.0,0.3257234]
[1748232042485,0.026,109490.0,109470.0,0.3277234]
[1748232045202,0.0162,109480.0,109470.0,0.5218434]
[1748232045404,0.0316,109480.0,109470.0,0.5218434]
[1748232046045,0.0162,109480.0,109470.0,0.5188434]
[1748232046263,0.0162,109480.0,109470.0,0.5198434]
[1748232046472,0.0162,109480.0,109470.0,0.5208434]
[1748232046911,0.0162,109480.0,109470.0,0.5178434]
[1748232047172,0.0102,109480.0,109470.0,0.5188434]
[1748232047493,0.0253,109480.0,109470.0,0.5188434]
[1748232051188,0.0102,109480.0,109470.0,0.5188434]
[1748232053059,0.0265,109480.0,109470.0,0.5188434]
[1748232054301,0.0205,109480.0,109470.0,0.5188434]
[1748232061360,0.0315,109480.0,109470.0,0.5188434]
[1748232061750,0.03435448,109480.0,109470.0,0.5188434]
[1748232061953,0.0315,109480.0,109470.0,0.5188434]
[1748232063626,0.0315,109480.0,109470.0,0.3663634]
[1748232064025,0.00285448,109490.0,109470.0,0.3663634]
[1748232064230,0.0306,109490.0,109470.0,0.3663634]
[1748232064463,0.03345437,109490.0,109470.0,0.3663634]
[1748232064889,0.03345437,109490.0,109470.0,0.3643634]
[1748232065326,0.03345437,109490.0,109470.0,0.3663634]
[1748232065995,0.03345437,109490.0,109470.0,0.3819634]
[1748232066206,0.0306,109490.0,109470.0,0.3819634]
[1748232066413,0.0306,109490.0,109470.0,0.3663634]
[1748232066657,0.03345437,109490.0,109470.0,0.3663634]
[1748232068955,0.0306,109490.0,109470.0,0.3663634]
[1748232069412,0.01815437,109490.0,109470.0,0.3663634]
[1748232069621,0.0157,109480.0,109470.0,0.5122434]
[1748232070208,0.0157,109480.0,109470.0,0.6646834]
[1748232071052,0.0157,109480.0,109470.0,0.6636834]
[1748232071810,0.0157,109480.0,109470.0,0.6646834]
[1748232072776,0.03425437,109490.0,109470.0,0.6646834]
[1748232073657,0.03425437,109490.0,109470.0,0.6636834]
[1748232074073,0.0314,109490.0,109470.0,0.6646834]
[1748232074435,0.03425437,109490.0,109470.0,0.6646834]
[1748232075051,0.03425437,109490.0,109470.0,0.6636834]
[1748232075295,0.03425437,109490.0,109470.0,0.6646834]
[1748232076728,0.03425437,109490.0,109470.0,0.3663634]
[1748232076930,0.0318,109480.0,109470.0,0.5188034]
[1748232077742,0.0318,109480.0,109470.0,0.5178034]
[1748232078498,0.0258,109480.0,109470.0,0.5188034]
[1748232078712,0.5142608,109480.0,109470.0,0.0263634]
[1748232078943,0.60380636,109480.0,109470.0,0.002]
[1748232083505,0.61714326,109480.0,109470.0,0.002]
[1748232083905,0.60380636,109480.0,109470.0,0.002]
[1748232087870,0.11534556,109480.0,109470.0,0.002]
[1748232088100,0.11820004,109480.0,109470.0,0.002]
[1748232088848,0.13154514,109480.0,109470.0,0.002]
[1748232093052,0.62000594,109480.0,109470.0,0.002]
[1748232093208,0.61715146,109480.0,109470.0,0.002]
[1748232094221,0.61715146,109480.0,109470.0,0.001]
[1748232094646,0.61815146,109480.0,109470.0,0.001]
[1748232094839,0.59235146,109480.0,109460.0,0.34]
[1748232095050,0.03475448,109470.0,109450.0,0.3377234]
[1748232095501,0.02875448,109470.0,109450.0,0.3377234]
[1748232096135,0.02875448,109470.0,109450.0,0.11300149]
[1748232096353,0.02875448,109470.0,109450.0,0.15289728]
[1748232096545,0.02875448,109470.0,109450.0,0.00049728]
[1748232096766,0.02875448,109470.0,109450.0,0.49589728]
[1748232097402,0.02875448,109470.0,109450.0,0.51239728]
[1748232097599,0.02875448,109470.0,109450.0,0.51539728]
[1748232099546,0.02875448,109470.0,109450.0,0.36299728]
[1748232100573,0.0155,109460.0,109450.0,0.34649728]
[1748232101395,0.0307,109460.0,109450.0,0.00049728]
[1748232101610,0.75462636,109460.0,109450.0,0.00349728]
[1748232101826,0.76376136,109460.0,109450.0,0.00549728]
[1748232102264,0.76376136,109460.0,109450.0,0.00349728]
[1748232102464,0.75462636,109460.0,109450.0,0.00349728]
[1748232103266,0.75462636,109460.0,109450.0,0.00449728]
[1748232103497,0.60870636,109460.0,109450.0,0.00449728]
[1748232103702,0.26616556,109460.0,109450.0,0.00449728]
[1748232103903,0.12024556,109460.0,109450.0,0.00149728]
[1748232104226,0.26902004,109460.0,109450.0,0.00249728]
[1748232104429,0.26616556,109460.0,109450.0,0.00149728]
[1748232104739,0.26616556,109460.0,109450.0,0.00049728]
[1748232104941,0.26716556,109460.0,109450.0,0.00049728]
[1748232105116,0.26816556,109460.0,109450.0,0.00049728]
[1748232109518,0.12224556,109460.0,109450.0,0.00049728]
[1748232109736,0.002,109460.0,109450.0,0.01679728]
[1748232109948,0.002,109460.0,109450.0,0.03329728]
[1748232117510,0.002,109460.0,109450.0,0.01679728]
[1748232118941,0.002,109460.0,109450.0,0.00049728]
[1748232120470,0.00168581,109460.0,109450.0,0.00049728]
[1748232121618,0.03318581,109460.0,109450.0,0.00049728]
[1748232121824,0.03604029,109460.0,109450.0,0.00049728]
[1748232122412,0.02044029,109460.0,109450.0,0.00049728]
[1748232123066,0.03654029,109460.0,109450.0,0.00049728]
[1748232129164,0.61454665,109460.0,109450.0,0.00049728]
[1748232129347,0.61169217,109460.0,109450.0,0.00049728]
[1748232130270,0.75761217,109460.0,109450.0,0.00049728]
[1748232133151,0.75761217,109460.0,109450.0,0.00963328]
[1748232134066,0.75761217,109460.0,109450.0,0.01876953]
[1748232134796,0.76674717,109460.0,109450.0,0.01876953]
[1748232136743,0.77588234,109460.0,109450.0,0.01876953]
[1748232137080,0.76674717,109460.0,109450.0,0.01876953]
[1748232137318,0.77588234,109460.0,109450.0,0.01876953]
[1748232137532,0.77588225,109460.0,109450.0,0.01876953]
[1748232140672,0.64823318,109460.0,109450.0,0.01877003]
[1748232140893,0.7850175,109460.0,109450.0,0.0370423]
[1748232141102,0.79415292,109460.0,109450.0,0.0370423]
[1748232141536,0.79246711,109460.0,109450.0,0.0370423]
[1748232141946,0.86720542,109460.0,109450.0,0.0370423]
[1748232144392,0.85806992,109460.0,109450.0,0.0370423]
[1748232145045,1.03165065,109460.0,109450.0,0.01876996]
[1748232145275,0.83979984,109460.0,109450.0,0.02790596]
[1748232145471,0.83979934,109460.0,109450.0,0.0370423]
[1748232145650,0.85807001,109460.0,109450.0,0.0370423]
[1748232145850,0.71215001,109460.0,109450.0,0.0370423]
[1748232146051,0.85811001,109460.0,109450.0,0.0370423]
[1748232146255,0.8672456,109460.0,109450.0,0.0370423]
[1748232146718,0.85811001,109460.0,109450.0,0.0370423]
[1748232147717,1.04082515,109460.0,109450.0,0.01877021]
[1748232147865,0.85811051,109460.0,109450.0,0.03704238]
[1748232151683,0.84897501,109460.0,109450.0,0.03704238]
[1748232155149,0.83983968,109460.0,109450.0,0.03704238]
[1748232155313,0.83070434,109460.0,109450.0,0.03704238]
[1748232155520,0.83983968,109460.0,109450.0,0.03704238]
[1748232158341,0.84897518,109460.0,109450.0,0.03704238]
[1748232158547,0.83983968,109460.0,109450.0,0.03704238]
[1748232159016,0.84897527,109460.0,109450.0,0.03704238]
[1748232159228,0.8489751,109460.0,109450.0,0.03704238]
[1748232159429,0.85811069,109460.0,109450.0,0.03704238]
[1748232159904,0.86724636,109460.0,109450.0,0.03704238]
[1748232160315,0.85811069,109460.0,109450.0,0.03704238]
[1748232160692,1.05536718,109460.0,109450.0,0.01877021]
[1748232160991,1.05536718,109460.0,109450.0,0.0279063]
[1748232161359,0.87265204,109460.0,109450.0,0.0370423]
[1748232161545,0.86351637,109460.0,109450.0,0.0370423]
[1748232168766,0.85438078,109460.0,109450.0,0.0370423]
[1748232168968,0.86351637,109460.0,109450.0,0.0370423]
[1748232169422,0.85438078,109460.0,109450.0,0.0370423]
[1748232173116,0.14225717,109460.0,109450.0,0.0370423]
[1748232173336,0.28399504,109460.0,109450.0,0.0370423]
[1748232173570,0.90566361,109450.0,109440.0,0.00913684]
[1748232173757,0.99520917,109450.0,109440.0,0.00922768]
[1748232176404,1.01180917,109450.0,109440.0,0.00922768]
[1748232176607,0.99520917,109450.0,109440.0,0.00922768]
[1748232176806,0.97960917,109450.0,109440.0,0.00922768]
[1748232177334,1.01180917,109450.0,109440.0,0.00922768]
[1748232177953,1.02094501,109450.0,109440.0,0.00922768]
[1748232178146,1.01180917,109450.0,109440.0,0.00922768]
[1748232179255,1.0300811,109450.0,109440.0,0.00922768]
[1748232179660,1.01180917,109450.0,109440.0,0.00922768]
[1748232179997,1.02094517,109450.0,109440.0,0.00922768]
[1748232180197,1.58014503,109450.0,109440.0,0.00922768]
[1748232180422,1.03008142,109450.0,109440.0,0.00922768]
[1748232180628,1.03008134,109450.0,109440.0,0.00922768]
[1748232180999,0.69008134,109450.0,109440.0,0.00922768]
[1748232182116,0.14001765,109450.0,109440.0,0.00922768]
[1748232182375,0.67466365,109450.0,109440.0,0.00922768]
[1748232182591,0.68094517,109450.0,109440.0,0.00922768]
[1748232183261,0.68094509,109450.0,109440.0,0.00922768]
[1748232183920,0.67180917,109450.0,109440.0,0.00922768]
[1748232184131,0.68094509,109450.0,109440.0,0.00922768]
[1748232185180,0.68094509,109450.0,109440.0,0.01836477]
[1748232185181,0.69008118,109450.0,109440.0,0.01836477]
[1748232185696,0.67180917,109450.0,109440.0,0.01836477]
[1748232185871,0.68094509,109450.0,109440.0,0.01836477]
[1748232186681,0.69008109,109450.0,109440.0,0.01836477]
[1748232187201,0.68094509,109450.0,109440.0,0.01836477]
[1748232190469,0.67180917,109450.0,109440.0,0.01836477]
[1748232191394,0.68094501,109450.0,109440.0,0.01836477]
[1748232192788,0.67180917,109450.0,109440.0,0.01836477]
[1748232193329,0.68094517,109450.0,109440.0,0.01836477]
[1748232193540,0.67180917,109450.0,109440.0,0.01836477]
[1748232193753,0.68094517,109450.0,109440.0,0.01836477]
[1748232195514,0.67180917,109450.0,109440.0,0.01836477]
[1748232195710,0.68094509,109450.0,109440.0,0.01836477]
[1748232199193,0.67180917,109450.0,109440.0,0.01836477]
[1748232201034,0.68094517,109450.0,109440.0,0.01836477]
[1748232202415,0.82690517,109450.0,109440.0,0.01836477]
[1748232202619,0.83604134,109450.0,109440.0,0.01836477]
[1748232203002,0.83604126,109450.0,109440.0,0.01836477]
[1748232203197,1.38610487,109450.0,109440.0,0.01836477]
[1748232203424,1.49255228,109450.0,109440.0,0.01836477]
[1748232203625,1.49255228,109450.0,109440.0,0.01836527]
[1748232203847,1.49255228,109450.0,109440.0,0.02750211]
[1748232204337,1.40437738,109450.0,109440.0,0.02750211]
[1748232204475,1.4135143,109450.0,109440.0,0.02750219]
[1748232204679,1.40437821,109450.0,109440.0,0.03663903]
[1748232204943,1.40437821,109450.0,109440.0,0.02750219]
[1748232205147,1.40437821,109450.0,109440.0,0.03663903]
[1748232205775,1.39524171,109450.0,109440.0,0.03663903]
[1748232206072,1.38610487,109450.0,109440.0,0.03663903]
[1748232206267,0.28597765,109450.0,109440.0,0.03663903]
[1748232206417,1.39524129,109450.0,109440.0,0.03663903]
[1748232208015,1.40437779,109450.0,109440.0,0.03663903]
[1748232209150,1.41351438,109450.0,109440.0,0.02750219]
[1748232209296,1.40437846,109450.0,109440.0,0.02750219]
[1748232209653,1.60165115,109450.0,109440.0,0.00922818]
[1748232209796,1.60165115,109450.0,109440.0,0.02750235]
[1748232209797,1.63413634,109450.0,109440.0,0.02750235]
[1748232210445,1.41891931,109450.0,109440.0,0.02750235]
[1748232210644,1.41891931,109450.0,109440.0,0.03663927]
[1748232211025,1.41891931,109450.0,109440.0,0.02750235]
[1748232211801,1.60165115,109450.0,109440.0,0.02750235]
[1748232211971,1.60165115,109450.0,109440.0,0.03663927]
[1748232212182,1.40978272,109450.0,109440.0,0.04577611]
[1748232212693,1.42016754,109450.0,109440.0,0.04577611]
[1748232214458,1.40978272,109450.0,109440.0,0.04577611]
[1748232215231,1.59251456,109450.0,109440.0,0.01836535]
[1748232215430,1.60165115,109450.0,109440.0,0.02750227]
[1748232215792,1.75389115,109450.0,109440.0,0.02750227]
[1748232216599,1.75389115,109450.0,109440.0,0.02750244]
[1748232216801,1.75389115,109450.0,109440.0,0.03663944]
[1748232217306,1.56202272,109450.0,109440.0,0.04577636]
[1748232218086,1.65154423,109450.0,109440.0,0.04577636]
[1748232219958,1.65154423,109450.0,109440.0,0.04577586]
[1748232220972,1.66068082,109450.0,109440.0,0.03663902]
[1748232221413,1.83427649,109450.0,109440.0,0.0183651]
[1748232221613,1.83427649,109450.0,109440.0,0.00922826]
[1748232221825,1.82514007,109450.0,109440.0,0.0183656]
[1748232222497,1.82514007,109450.0,109440.0,0.02750269]
[1748232223293,1.73561856,109450.0,109440.0,0.02750269]
[1748232223916,1.73561856,109450.0,109440.0,0.0183656]
[1748232224131,1.73561856,109450.0,109440.0,0.02750269]
[1748232224460,1.55288672,109450.0,109440.0,0.02750269]
[1748232224664,1.55288672,109450.0,109440.0,0.04577653]
[1748232225266,0.13628641,109450.0,109440.0,0.04577653]
[1748232225476,0.80402365,109450.0,109440.0,0.04577653]
[1748232225688,1.35123278,109450.0,109440.0,0.04577653]
[1748232225897,0.80116917,109450.0,109440.0,0.04577653]
[1748232226811,1.3767687,109450.0,109440.0,0.04577653]
[1748232229488,1.36763278,109450.0,109440.0,0.04577653]
[1748232229927,1.50823966,109450.0,109440.0,0.03663969]
[1748232230128,1.41871815,109450.0,109440.0,0.04577653]
[1748232231862,1.41871815,109450.0,109440.0,0.03663969]
[1748232232093,1.60144999,109450.0,109440.0,0.04577661]
[1748232232921,1.41871815,109450.0,109440.0,0.04577603]
[1748232233123,1.40958173,109450.0,109440.0,0.04577603]
[1748232233350,1.42785457,109450.0,109440.0,0.04577603]
[1748232233550,1.57083807,109450.0,109440.0,0.04577603]
[1748232234669,1.57083807,109450.0,109440.0,0.02750227]
[1748232234897,1.75357049,109450.0,109440.0,0.00922818]
[1748232235104,1.7444344,109450.0,109440.0,0.01836543]
[1748232235552,1.7444344,109450.0,109440.0,0.0275026]
[1748232235729,1.5984744,109450.0,109440.0,0.0275026]
[1748232235884,0.12154556,109450.0,109440.0,0.0366396]
[1748232236085,0.79755949,109450.0,109440.0,0.04577644]
[1748232236303,0.78556917,109450.0,109440.0,0.04577644]
[1748232236497,0.78556917,109450.0,109440.0,0.07847644]
[1748232236901,0.63960917,109450.0,109440.0,0.07847644]
[1748232237125,0.78556917,109450.0,109440.0,0.07847644]
[1748232238626,0.63960917,109450.0,109440.0,0.07847644]
[1748232239247,0.78556917,109450.0,109440.0,0.07847644]
[1748232240389,0.78137183,109450.0,109440.0,0.07847644]
[1748232242730,0.78137183,109450.0,109440.0,0.04577644]
[1748232243497,0.79667183,109450.0,109440.0,0.04577644]
[1748232243698,0.83024376,109450.0,109440.0,0.04577644]
[1748232243908,1.59585265,109450.0,109440.0,0.01836543]
[1748232244109,1.59585265,109450.0,109440.0,0.02750252]
[1748232244312,1.59585265,109450.0,109440.0,0.00922818]
[1748232244516,1.58671681,109450.0,109440.0,0.01836543]
[1748232244712,1.57758072,109450.0,109440.0,0.00922818]
[1748232244973,1.57758072,109450.0,109440.0,0.02750244]
[1748232245357,1.57758072,109450.0,109440.0,0.01836535]
[1748232246125,1.56844455,109450.0,109440.0,0.01836535]
[1748232247375,1.56844455,109450.0,109440.0,9.084e-05]
[1748232247618,1.56844455,109450.0,109440.0,0.02750252]
[1748232247821,1.56844455,109450.0,109440.0,0.01836543]
[1748232250205,1.56844455,109450.0,109440.0,0.02750252]
[1748232250639,1.55930813,109450.0,109440.0,9.084e-05]
[1748232251650,1.64882964,109450.0,109440.0,9.084e-05]
[1748232253019,1.55930813,109450.0,109440.0,9.084e-05]
[1748232254257,0.45918091,109450.0,109440.0,9.084e-05]
[1748232254477,1.55930813,109450.0,109440.0,9.084e-05]
[1748232254871,1.58669813,109450.0,109440.0,9.084e-05]
[1748232255076,2.60639813,109450.0,109440.0,9.084e-05]
[1748232255977,2.48486339,109450.0,109440.0,9.084e-05]
[1748232256188,2.49360942,109450.0,109440.0,9.084e-05]
[1748232256411,2.58313093,109450.0,109440.0,9.084e-05]
[1748232257590,0.01827893,109410.0,109400.0,0.00914043]
[1748232257799,0.01828245,109390.0,109380.0,0.0182837]
[1748232257999,0.72765628,109390.0,109380.0,0.02757511]
[1748232258178,0.7522028,109390.0,109380.0,0.02757511]
[1748232259063,0.7462028,109390.0,109360.0,0.02365079]
[1748232259418,0.182861,109390.0,109380.0,0.02742588]
[1748232259627,0.7557028,109390.0,109380.0,0.02742588]
[1748232259824,0.7567028,109390.0,109380.0,0.03442588]
[1748232260286,0.10604556,109390.0,109380.0,0.03442588]
[1748232260439,0.10455697,109390.0,109380.0,0.03442588]
[1748232261240,0.10841145,109390.0,109380.0,0.03942588]
[1748232263815,0.002,109390.0,109380.0,0.39812588]
[1748232264696,0.002,109390.0,109380.0,0.63367144]
[1748232265317,0.002,109390.0,109380.0,0.63467144]
[1748232267179,0.01261813,109430.0,109380.0,0.58854556]
[1748232267388,0.08954556,109420.0,109400.0,0.0186]
[1748232267584,0.08954556,109420.0,109410.0,0.01827877]
[1748232269575,0.08954556,109420.0,109380.0,0.40508856]
[1748232270120,0.10584556,109420.0,109410.0,0.02027877]
[1748232270933,0.10484556,109420.0,109410.0,0.01827877]
[1748232271072,0.12134556,109420.0,109410.0,0.01827877]
[1748232271285,0.12234556,109420.0,109410.0,0.01827877]
[1748232271495,0.12134556,109420.0,109410.0,0.01827877]
[1748232271694,0.12134556,109420.0,109410.0,0.02027877]
[1748232271896,0.12234556,109420.0,109410.0,0.02027877]
[1748232272486,0.12334556,109420.0,109410.0,0.02027877]
[1748232273013,0.12234556,109420.0,109410.0,0.02027877]
[1748232273237,0.09054556,109420.0,109410.0,0.02127877]
[1748232275884,0.10554556,109420.0,109410.0,0.02127877]
[1748232276245,0.12164556,109420.0,109410.0,0.02127877]
[1748232276463,0.09054556,109420.0,109410.0,0.02127877]
[1748232283588,0.10584556,109420.0,109410.0,0.02127877]
[1748232284065,0.0163,109420.0,109410.0,0.02127877]
[1748232284270,0.001,109420.0,109410.0,0.02127877]
[1748232285861,0.001,109420.0,109410.0,0.02356371]
[1748232286292,0.001,109420.0,109410.0,0.50956371]
[1748232286552,0.001,109420.0,109410.0,0.50727877]
[1748232289198,0.04051558,109440.0,109430.0,0.01827559]
[1748232289347,0.13021023,109440.0,109430.0,0.02741376]
[1748232290509,0.13421023,109440.0,109430.0,0.02841376]
[1748232291225,0.04466467,109440.0,109430.0,0.02841376]
[1748232302073,0.05370603,109440.0,109430.0,0.02841376]
[1748232304844,0.04466467,109440.0,109430.0,0.02841376]
[1748232305247,0.03094909,109440.0,109430.0,0.02841376]
[1748232314103,0.0315,109430.0,109410.0,0.33604594]
[1748232314213,0.0315,109430.0,109420.0,0.00913842]
[1748232316369,0.0255,109430.0,109420.0,0.00913842]
[1748232316772,0.0265,109430.0,109420.0,0.00913842]
[1748232317903,0.0265,109430.0,109420.0,0.01142293]
[1748232319693,0.0265,109430.0,109420.0,0.00913842]
[1748232321554,0.0265,109430.0,109420.0,0.01142293]
[1748232323477,0.0205,109430.0,109420.0,0.01142293]
[1748232330527,0.0145,109430.0,109420.0,0.01142293]
[1748232331534,0.001,109430.0,109420.0,0.01142293]
[1748232331954,0.001,109430.0,109420.0,0.36702293]
[1748232332171,0.001,109430.0,109420.0,0.34913842]
[1748232333193,0.002,109430.0,109420.0,0.35113842]
[1748232333391,0.001,109430.0,109420.0,0.35113842]
[1748232333791,0.0164,109430.0,109420.0,0.35113842]
[1748232334004,0.0164,109430.0,109420.0,0.35213842]
[1748232338127,0.0104,109430.0,109420.0,0.35213842]
[1748232341300,0.0054,109430.0,109420.0,0.35213842]
[1748232341606,0.01614909,109440.0,109420.0,0.35213842]
[1748232342243,0.01614909,109440.0,109420.0,0.50409842]
[1748232342739,0.01614909,109440.0,109420.0,0.50209842]
[1748232343076,0.01714909,109440.0,109420.0,0.50309842]
[1748232343290,0.0159,109430.0,109420.0,0.50409842]
[1748232344159,0.0159,109430.0,109420.0,0.50309842]
[1748232344414,0.0309,109430.0,109420.0,0.50209842]
[1748232344713,0.0319,109430.0,109420.0,0.50409842]
[1748232345836,0.02804909,109440.0,109420.0,0.50409842]
[1748232346866,0.02804909,109440.0,109420.0,0.50309842]
[1748232347045,0.02804909,109440.0,109420.0,0.50409842]
[1748232347400,0.02804909,109440.0,109420.0,0.50209842]
[1748232347924,0.02904909,109440.0,109420.0,0.50409842]
[1748232351213,0.02904909,109440.0,109420.0,0.59364398]
[1748232351422,0.02904909,109440.0,109430.0,0.00228439]
[1748232352624,0.03004909,109440.0,109430.0,0.00228439]
[1748232353578,0.02904909,109440.0,109430.0,0.00228439]
[1748232353979,0.02904909,109440.0,109430.0,0.00328439]
[1748232357015,0.02904909,109440.0,109430.0,0.001]
[1748232358553,0.02904909,109440.0,109430.0,0.00328421]
[1748232358882,0.02904909,109440.0,109430.0,0.001]
[1748232366910,0.02904909,109440.0,109430.0,0.00328421]
[1748232368699,0.02904909,109440.0,109430.0,0.04898421]
[1748232377752,0.02904909,109440.0,109430.0,0.0467]
[1748232378428,0.57907509,109440.0,109430.0,0.0467]
[1748232379068,0.02904909,109440.0,109430.0,0.0467]
[1748232383490,0.02904909,109440.0,109430.0,0.048992]
[1748232385666,0.02904909,109440.0,109430.0,0.06726759]
[1748232386297,0.02904909,109440.0,109430.0,0.07640576]
[1748232400081,0.02904909,109440.0,109420.0,0.2318916]
[1748232400327,0.01404909,109440.0,109420.0,0.00913867]
[1748232400571,0.0152,109430.0,109420.0,0.00913867]
[1748232401288,0.0314,109430.0,109420.0,0.01013867]
[1748232401639,0.0314,109430.0,109420.0,0.01213867]
[1748232401839,0.0314,109430.0,109420.0,0.01113867]
[1748232402243,0.0324,109430.0,109420.0,0.35313867]
[1748232402944,0.0264,109430.0,109420.0,0.35313867]
[1748232403142,0.0264,109430.0,109420.0,0.35413867]
[1748232406783,0.0172,109430.0,109420.0,0.35413867]
[1748232407032,0.001,109430.0,109420.0,0.35413867]
[1748232409969,0.0286,109440.0,109420.0,0.35413867]
[1748232410722,0.578626,109440.0,109420.0,0.35413867]
[1748232410932,0.0151,109430.0,109420.0,0.34913867]
[1748232411721,0.0151,109430.0,109420.0,0.35113867]
[1748232412158,0.0151,109430.0,109420.0,0.34913867]
[1748232412297,0.0161,109430.0,109420.0,0.35213867]
[1748232412881,0.0161,109430.0,109420.0,0.35113867]
[1748232413043,0.0323,109430.0,109420.0,0.35113867]
[1748232413268,0.0323,109430.0,109420.0,0.35213867]
[1748232415551,0.582326,109430.0,109420.0,0.01213867]
[1748232416562,0.0323,109430.0,109420.0,0.01213867]
[1748232417056,0.0263,109430.0,109420.0,0.01213867]
[1748232420290,0.02602584,109430.0,109420.0,0.01213867]
[1748232424183,0.02002584,109430.0,109420.0,0.01213867]
[1748232427036,0.57005184,109430.0,109420.0,0.01213867]
[1748232430254,0.02002584,109430.0,109420.0,0.01213867]
[1748232431223,0.01402584,109430.0,109420.0,0.01213867]
[1748232434244,0.02922584,109430.0,109420.0,0.01213867]
[1748232436108,0.57925184,109430.0,109420.0,0.01213867]
[1748232436811,0.02922584,109430.0,109420.0,0.01213867]
[1748232438224,0.02322584,109430.0,109420.0,0.01213867]
[1748232443710,0.57325184,109430.0,109420.0,0.01213867]
[1748232444977,0.6627974,109430.0,109420.0,0.01213867]
[1748232445503,0.6567974,109430.0,109420.0,0.01213867]
[1748232447534,0.01722584,109430.0,109420.0,0.01213867]
[1748232447747,0.712486,109440.0,109420.0,0.01213867]
[1748232447960,0.80203156,109440.0,109420.0,0.01213867]
[1748232448412,0.81723156,109440.0,109420.0,0.01213867]
[1748232448621,0.81723156,109440.0,109420.0,0.00913867]
[1748232448829,0.81723156,109440.0,109420.0,0.01013867]
[1748232449439,0.0165,109430.0,109420.0,0.01013867]
[1748232450387,0.0165,109430.0,109420.0,0.00913867]
[1748232450589,0.0318,109430.0,109420.0,0.01213867]
[1748232450794,0.0318,109430.0,109420.0,0.01013867]